[Event "Snabb-SM för veteraner, 50+ 2019"]
[Site "Schackcentrum, Vegagatan 20, Gothenburg, Sweden"]
[Date "2019.10.05"]
[Round "2.2"]
[White "Gamback, Bjorn"]
[Black "Svenn, Gosta"]
[Result "0-1"]
[TimeControl "15 minutes + 10 seconds per move from move one"]
[WhiteTitle "CM"]
[BlackTitle "FM"]
[WhiteFideId "1703161"]
[BlackFideId "1700553"]
[WhiteElo "2120"]
[BlackElo "2272"]

1. Nf3 {[%clk 00:15:18]} {[%emt 00:00:01]} e6 {[%clk 00:15:13]} {[%emt
00:00:06]} 2. c4 {[%clk 00:15:24]} {[%emt 00:00:05]} f5 {[%clk 00:15:19]}
{[%emt 00:00:04]} 3. b3 {[%clk 00:15:21]} {[%emt 00:00:14]} Nf6 {[%clk
00:15:25]} {[%emt 00:00:03]} 4. Bb2 {[%clk 00:15:30]} {[%emt 00:00:01]} Be7
{[%clk 00:15:31]} {[%emt 00:00:04]} 5. e3 {[%clk 00:15:31]} {[%emt 00:00:08]}
O-O {[%clk 00:15:33]} {[%emt 00:00:08]} 6. d3 {[%clk 00:15:26]} {[%emt
00:00:16]} d6 {[%clk 00:15:35]} {[%emt 00:00:08]} 7. Nbd2 {[%clk 00:15:33]}
{[%emt 00:00:03]} a5 {[%clk 00:14:29]} {[%emt 00:01:17]} 8. a3 {[%clk
00:15:34]} {[%emt 00:00:09]} Nc6 {[%clk 00:13:34]} {[%emt 00:01:04]} 9. g3
{[%clk 00:15:02]} {[%emt 00:00:42]} e5 {[%clk 00:13:21]} {[%emt 00:00:23]} 10.
Bg2 {[%clk 00:14:53]} {[%emt 00:00:19]} Qe8 {[%clk 00:13:19]} {[%emt 00:00:13]}
11. O-O {[%clk 00:14:12]} {[%emt 00:00:51]} Kh8 {[%clk 00:12:41]} {[%emt
00:00:46]} 12. Ne1 {[%clk 00:14:07]} {[%emt 00:00:15]} f4 {[%clk 00:12:10]}
{[%emt 00:00:42]} 13. exf4 {[%clk 00:13:52]} {[%emt 00:00:25]} exf4 {[%clk
00:12:13]} {[%emt 00:00:07]} 14. d4 {[%clk 00:13:59]} {[%emt 00:00:03]} Bg4
{[%clk 00:12:03]} {[%emt 00:00:20]} 15. f3 {[%clk 00:13:24]} {[%emt 00:00:46]}
Bf5 {[%emt 00:01:14]} 16. g4 {[%clk 00:12:49]} {[%emt 00:00:04]} Bg6 {[%clk
00:11:42]} {[%emt 00:00:06]} 17. Qe2 {[%clk 00:12:46]} {[%emt 00:00:14]} d5
{[%clk 00:11:28]} {[%emt 00:00:25]} 18. Qf2 {[%clk 00:11:45]} {[%emt 00:01:10]}
Qd7 {[%clk 00:11:02]} {[%emt 00:00:37]} 19. Kh1 {[%clk 00:11:22]} {[%emt
00:00:34]} Rfe8 {[%clk 00:09:56]} {[%emt 00:01:15]} 20. Rg1 {[%clk 00:10:54]}
{[%emt 00:00:37]} a4 {[%clk 00:08:25]} {[%emt 00:01:41]} 21. b4 {[%clk
00:10:41]} {[%emt 00:00:24]} dxc4 {[%clk 00:08:33]} {[%emt 00:00:02]} 22. Nxc4
{[%clk 00:10:50]} {[%emt 00:00:02]} Bd6 {[%clk 00:05:45]} {[%emt 00:02:57]} 23.
Bf1 {[%clk 00:10:05]} {[%emt 00:00:55]} Nd5 {[%clk 00:05:29]} {[%emt 00:00:26]}
24. Bd3 {[%clk 00:09:59]} {[%emt 00:00:16]} Qf7 {[%clk 00:05:22]} {[%emt
00:00:17]} 25. Nxd6 {[%clk 00:09:45]} {[%emt 00:00:24]} cxd6 {[%clk 00:05:30]}
{[%emt 00:00:02]} 26. Bxg6 {[%clk 00:09:45]} {[%emt 00:00:10]} Qxg6 {[%clk
00:05:35]} {[%emt 00:00:05]} 27. Ng2 {[%clk 00:09:49]} {[%emt 00:00:06]} Qd3
{[%clk 00:04:56]} {[%emt 00:00:49]} 28. Rgd1 {[%clk 00:09:09]} {[%emt
00:00:50]} Re2 {[%clk 00:04:10]} {[%emt 00:00:55]} 29. Rxd3 {[%clk 00:06:41]}
{[%emt 00:02:39]} Rxf2 {[%clk 00:04:17]} {[%emt 00:00:02]} 30. Bc3 {[%clk
00:06:51]} Re8 {[%clk 00:03:42]} {[%emt 00:00:45]} 31. Bd2 {[%clk 00:04:23]}
{[%emt 00:02:38]} g5 {[%clk 00:02:20]} {[%emt 00:01:32]} 32. Re1 {[%clk
00:03:59]} {[%emt 00:00:33]} Ree2 {[%clk 00:02:21]} {[%emt 00:00:10]} 33. Rxe2
{[%clk 00:03:58]} {[%emt 00:00:12]} Rf1# {[%clk 00:02:17]} {[%emt 00:00:03]}
0-1

[Event "Snabb-SM för veteraner, 50+ 2019"]
[Site "Schackcentrum, Vegagatan 20, Gothenburg, Sweden"]
[Date "2019.10.05"]
[Round "2.3"]
[White "Sigeman, Johan"]
[Black "Madebrink, Lars"]
[Result "1-0"]
[TimeControl "15 minutes + 10 seconds per move from move one"]
[WhiteFideId "1705601"]
[BlackFideId "1701347"]
[WhiteElo "2100"]
[BlackElo "2179"]

1. c4 {[%clk 00:15:17]} {[%emt 00:00:03]} Nf6 {[%clk 00:15:25]} {[%emt
00:00:04]} 2. Nc3 {[%clk 00:15:25]} {[%emt 00:00:02]} c5 {[%clk 00:15:24]}
{[%emt 00:00:11]} 3. Nf3 {[%clk 00:15:25]} {[%emt 00:00:10]} g6 {[%clk
00:15:32]} {[%emt 00:00:02]} 4. e3 {[%clk 00:15:24]} {[%emt 00:00:10]} Bg7
{[%clk 00:15:33]} {[%emt 00:00:09]} 5. d4 {[%clk 00:15:32]} {[%emt 00:00:03]}
cxd4 {[%clk 00:15:35]} {[%emt 00:00:09]} 6. exd4 {[%clk 00:15:34]} {[%emt
00:00:07]} O-O {[%clk 00:15:42]} {[%emt 00:00:03]} 7. Bg5 {[%clk 00:14:49]}
{[%emt 00:00:55]} d6 {[%clk 00:15:22]} {[%emt 00:00:30]} 8. Qd2 {[%clk
00:14:54]} {[%emt 00:00:05]} Nc6 {[%clk 00:14:33]} {[%emt 00:01:00]} 9. Be2
{[%clk 00:14:33]} {[%emt 00:00:31]} Re8 {[%clk 00:14:07]} {[%emt 00:00:35]} 10.
O-O {[%clk 00:13:49]} {[%emt 00:00:54]} Bf5 {[%clk 00:13:36]} {[%emt 00:00:41]}
11. d5 {[%clk 00:12:39]} {[%emt 00:01:21]} Ne5 {[%clk 00:13:23]} {[%emt
00:00:23]} 12. Nxe5 {[%clk 00:11:18]} {[%emt 00:01:31]} dxe5 {[%clk 00:13:30]}
{[%emt 00:00:02]} 13. Rfd1 {[%clk 00:10:47]} {[%emt 00:00:41]} Qa5 {[%clk
00:13:03]} {[%emt 00:00:37]} 14. a3 {[%clk 00:09:41]} {[%emt 00:01:17]} a6
{[%clk 00:12:11]} {[%emt 00:01:02]} 15. b4 {[%clk 00:09:37]} {[%emt 00:00:15]}
Qc7 {[%clk 00:12:20]} {[%emt 00:00:01]} 16. Be3 {[%clk 00:07:26]} {[%emt
00:02:21]} Bg4 {[%clk 00:11:04]} {[%emt 00:01:23]} 17. f3 {[%clk 00:07:12]}
{[%emt 00:00:26]} Bd7 {[%clk 00:11:13]} {[%emt 00:00:01]} 18. c5 {[%clk
00:07:12]} {[%emt 00:00:10]} Rad8 {[%clk 00:10:00]} {[%emt 00:01:22]} 19. Rac1
{[%clk 00:07:14]} {[%emt 00:00:10]} Qb8 {[%clk 00:09:51]} {[%emt 00:00:16]} 20.
Qa2 {[%clk 00:06:41]} {[%emt 00:00:45]} Bf5 {[%clk 00:09:13]} {[%emt 00:00:48]}
21. Bc4 {[%clk 00:06:17]} {[%emt 00:00:34]} e4 {[%clk 00:09:02]} {[%emt
00:00:22]} 22. d6 {[%clk 00:05:03]} {[%emt 00:01:24]} exd6 {[%clk 00:05:07]}
{[%emt 00:04:04]} 23. Bxf7+ {[%clk 00:05:04]} {[%emt 00:00:09]} Kh8 {[%clk
00:05:16]} 24. Bxe8 {[%clk 00:05:09]} {[%emt 00:00:06]} Rxe8 {[%clk 00:05:20]}
{[%emt 00:00:06]} 25. Bf4 {[%clk 00:04:14]} {[%emt 00:01:06]} exf3 {[%clk
00:05:08]} {[%emt 00:00:22]} 26. gxf3 {[%clk 00:04:12]} {[%emt 00:00:11]} Qc8
{[%clk 00:04:39]} {[%emt 00:00:39]} 27. cxd6 {[%clk 00:04:00]} {[%emt
00:00:22]} Bh3 {[%clk 00:03:07]} {[%emt 00:01:41]} 28. Qf7 {[%clk 00:02:59]}
{[%emt 00:01:12]} Rf8 {[%clk 00:03:00]} {[%emt 00:00:18]} 29. Qe7 {[%clk
00:02:49]} {[%emt 00:00:19]} Qf5 {[%clk 00:03:00]} {[%emt 00:00:10]} 30. Ne2
{[%clk 00:02:51]} {[%emt 00:00:08]} Nd5 {[%clk 00:02:27]} {[%emt 00:00:43]} 31.
Qg5 {[%clk 00:02:25]} {[%emt 00:00:36]} Nxf4 {[%clk 00:02:09]} {[%emt
00:00:27]} 32. Qxf4 {[%clk 00:02:13]} {[%emt 00:00:23]} Qe6 {[%clk 00:01:24]}
{[%emt 00:00:55]} 33. Qe4 {[%clk 00:01:52]} {[%emt 00:00:32]} Be5 {[%clk
00:01:14]} {[%emt 00:00:20]} 34. d7 {[%clk 00:01:54]} {[%emt 00:00:08]} Qf6
{[%clk 00:00:33]} {[%emt 00:00:50]} 35. d8=Q {[%clk 00:01:20]} {[%emt
00:00:44]} Rxd8 {[%clk 00:00:37]} {[%emt 00:00:06]} 36. Rxd8+ {[%clk 00:01:29]}
{[%emt 00:00:01]} Kg7 {[%clk 00:00:46]} 37. Rcd1 {[%clk 00:00:53]} {[%emt
00:00:46]} Qg5+ {[%clk 00:00:44]} {[%emt 00:00:11]} 38. Kf2 {[%clk 00:00:44]}
{[%emt 00:00:20]} Bxh2 {[%clk 00:00:43]} {[%emt 00:00:11]} 39. R8d7+ {[%clk
00:00:39]} {[%emt 00:00:16]} Kf8 {[%clk 00:00:16]} {[%emt 00:00:36]} 40. Rd8+
{[%clk 00:00:26]} {[%emt 00:00:23]} Kg7 {[%clk 00:00:24]} {[%emt 00:00:01]} 41.
R1d7+ {[%clk 00:00:26]} {[%emt 00:00:11]} Bxd7 {[%clk 00:00:26]} {[%emt
00:00:08]} 42. Rxd7+ {[%clk 00:00:35]} {[%emt 00:00:01]} Kf8 {[%clk 00:00:31]}
{[%emt 00:00:05]} 43. Qg4 {[%clk 00:00:36]} {[%emt 00:00:09]} Qf6 {[%clk
00:00:32]} {[%emt 00:00:09]} 44. Kg2 {[%clk 00:00:44]} {[%emt 00:00:03]} Be5
{[%clk 00:00:39]} {[%emt 00:00:02]} 45. Rxb7 {[%clk 00:00:49]} {[%emt
00:00:05]} h5 {[%clk 00:00:42]} {[%emt 00:00:07]} 46. Qc8+ {[%clk 00:00:58]}
{[%emt 00:00:02]} 1-0

[Event "Snabb-SM för veteraner, 50+ 2019"]
[Site "Schackcentrum, Vegagatan 20, Gothenburg, Sweden"]
[Date "2019.10.05"]
[Round "2.4"]
[White "Borvander, Tom"]
[Black "Svensson, Sven"]
[Result "1-0"]
[TimeControl "15 minutes + 10 seconds per move from move one"]
[WhiteFideId "1707388"]
[BlackFideId "1709240"]
[WhiteElo "2066"]
[BlackElo "2158"]

1. d4 {[%clk 00:15:14]} {[%emt 00:00:05]} Nf6 {[%clk 00:15:19]} {[%emt
00:00:02]} 2. c4 {[%clk 00:15:23]} {[%emt 00:00:02]} e6 {[%clk 00:15:27]}
{[%emt 00:00:01]} 3. g3 {[%clk 00:15:31]} {[%emt 00:00:02]} d5 {[%clk
00:15:15]} {[%emt 00:00:22]} 4. Nf3 {[%clk 00:15:39]} {[%emt 00:00:01]} Be7
{[%clk 00:15:23]} {[%emt 00:00:03]} 5. Bg2 {[%clk 00:15:47]} {[%emt 00:00:02]}
O-O {[%clk 00:15:29]} {[%emt 00:00:03]} 6. O-O {[%clk 00:15:54]} {[%emt
00:00:03]} c6 {[%clk 00:15:38]} {[%emt 00:00:01]} 7. Qc2 {[%clk 00:15:54]}
{[%emt 00:00:10]} Nbd7 {[%clk 00:15:42]} {[%emt 00:00:06]} 8. Bf4 {[%clk
00:15:44]} {[%emt 00:00:19]} dxc4 {[%clk 00:14:31]} {[%emt 00:01:22]} 9. Qxc4
{[%clk 00:15:50]} {[%emt 00:00:04]} Nb6 {[%clk 00:14:31]} {[%emt 00:00:11]} 10.
Qc2 {[%clk 00:15:16]} {[%emt 00:00:43]} Nbd5 {[%clk 00:14:09]} {[%emt
00:00:32]} 11. Bd2 {[%clk 00:15:05]} {[%emt 00:00:20]} Nb4 {[%clk 00:12:49]}
{[%emt 00:01:31]} 12. Qc1 {[%clk 00:14:40]} {[%emt 00:00:35]} Qb6 {[%clk
00:08:45]} {[%emt 00:04:15]} 13. Nc3 {[%clk 00:13:57]} {[%emt 00:00:53]} Nbd5
{[%clk 00:08:18]} {[%emt 00:00:37]} 14. Re1 {[%clk 00:12:50]} {[%emt 00:01:16]}
Nxc3 {[%clk 00:05:07]} {[%emt 00:03:22]} 15. bxc3 {[%clk 00:12:46]} {[%emt
00:00:14]} c5 {[%clk 00:05:15]} {[%emt 00:00:02]} 16. Rb1 {[%clk 00:11:36]}
{[%emt 00:01:20]} Qc7 {[%clk 00:03:58]} {[%emt 00:01:28]} 17. Ne5 {[%clk
00:11:04]} {[%emt 00:00:41]} Bd6 {[%clk 00:02:23]} {[%emt 00:01:46]} 18. Nc4
{[%clk 00:10:51]} {[%emt 00:00:23]} Nd5 {[%clk 00:01:20]} {[%emt 00:01:12]} 19.
e4 {[%clk 00:10:23]} {[%emt 00:00:38]} Nb6 {[%clk 00:01:29]} {[%emt 00:00:01]}
20. Nxd6 {[%clk 00:10:11]} {[%emt 00:00:23]} Qxd6 {[%clk 00:01:38]} 21. Bf4
{[%clk 00:09:38]} {[%emt 00:00:43]} Qe7 {[%clk 00:01:47]} 22. Qa3 {[%clk
00:09:00]} {[%emt 00:00:48]} Nd7 {[%clk 00:01:23]} {[%emt 00:00:35]} 23. e5
{[%clk 00:08:43]} {[%emt 00:00:27]} Nb6 {[%clk 00:00:26]} {[%emt 00:01:07]} 24.
Rxb6 {[%clk 00:08:36]} {[%emt 00:00:17]} 1-0

[Event "Snabb-SM för veteraner, 50+ 2019"]
[Site "Schackcentrum, Vegagatan 20, Gothenburg, Sweden"]
[Date "2019.10.05"]
[Round "2.5"]
[White "Andersson, Johan"]
[Black "Naslund, Mikael"]
[Result "1/2-1/2"]
[TimeControl "15 minutes + 10 seconds per move from move one"]
[BlackTitle "FM"]
[WhiteFideId "1703935"]
[BlackFideId "1708260"]
[WhiteElo "2152"]
[BlackElo "2076"]

1. e4 {[%clk 00:15:17]} {[%emt 00:00:03]} c5 {[%clk 00:15:19]} 2. Nf3 {[%clk
00:15:25]} {[%emt 00:00:03]} Nc6 {[%clk 00:15:28]} 3. Bb5 {[%clk 00:15:32]}
{[%emt 00:00:03]} g6 {[%clk 00:15:34]} {[%emt 00:00:04]} 4. O-O {[%clk
00:15:38]} {[%emt 00:00:04]} Bg7 {[%clk 00:15:42]} {[%emt 00:00:02]} 5. Qe2
{[%clk 00:15:45]} {[%emt 00:00:03]} e5 {[%clk 00:15:11]} {[%emt 00:00:41]} 6.
Qc4 {[%clk 00:15:38]} {[%emt 00:00:16]} d6 {[%clk 00:13:46]} {[%emt 00:01:35]}
7. b4 {[%clk 00:15:16]} {[%emt 00:00:33]} Be6 {[%clk 00:12:22]} {[%emt
00:01:35]} 8. Qc3 {[%clk 00:15:23]} {[%emt 00:00:02]} cxb4 {[%clk 00:11:48]}
{[%emt 00:00:44]} 9. Bxc6+ {[%clk 00:13:26]} {[%emt 00:02:07]} Kf8 {[%clk
00:10:40]} {[%emt 00:01:19]} 10. Qxb4 {[%clk 00:13:15]} {[%emt 00:00:20]} bxc6
{[%clk 00:10:48]} {[%emt 00:00:02]} 11. Ba3 {[%clk 00:11:58]} {[%emt 00:01:27]}
c5 {[%clk 00:10:54]} {[%emt 00:00:03]} 12. Qb5 {[%clk 00:11:14]} {[%emt
00:00:54]} Rb8 {[%clk 00:07:00]} {[%emt 00:04:04]} 13. Qe2 {[%clk 00:08:58]}
{[%emt 00:02:26]} f6 {[%clk 00:05:06]} {[%emt 00:02:05]} 14. c3 {[%clk
00:07:53]} {[%emt 00:01:15]} Ne7 {[%clk 00:04:24]} {[%emt 00:00:52]} 15. d4
{[%clk 00:07:51]} {[%emt 00:00:12]} cxd4 {[%clk 00:03:47]} {[%emt 00:00:48]} 16.
cxd4 {[%clk 00:07:59]} {[%emt 00:00:01]} Kf7 {[%clk 00:03:34]} {[%emt
00:00:23]} 17. Rd1 {[%clk 00:07:19]} {[%emt 00:00:50]} Qb6 {[%clk 00:03:30]}
{[%emt 00:00:14]} 18. dxe5 {[%clk 00:05:20]} {[%emt 00:02:09]} dxe5 {[%clk
00:03:36]} {[%emt 00:00:04]} 19. Rd6 {[%clk 00:05:06]} {[%emt 00:00:24]} Qb5
{[%clk 00:03:15]} {[%emt 00:00:31]} 20. Qd2 {[%clk 00:03:51]} {[%emt 00:01:25]}
Rhc8 {[%clk 00:01:57]} {[%emt 00:01:28]} 21. Rxe6 {[%clk 00:02:51]} {[%emt
00:01:11]} Kxe6 {[%clk 00:01:56]} {[%emt 00:00:11]} 22. Qd6+ {[%clk 00:02:59]}
{[%emt 00:00:02]} Kf7 {[%clk 00:01:58]} {[%emt 00:00:08]} 23. Qxe7+ {[%clk
00:03:07]} {[%emt 00:00:02]} Kg8 {[%clk 00:02:06]} {[%emt 00:00:01]} 24. Nbd2
{[%clk 00:02:53]} {[%emt 00:00:24]} Qa6 {[%clk 00:01:19]} {[%emt 00:00:58]} 25.
Qd6 {[%clk 00:02:20]} {[%emt 00:00:42]} Qxd6 {[%clk 00:00:56]} {[%emt
00:00:33]} 26. Bxd6 {[%clk 00:02:29]} {[%emt 00:00:01]} Rb2 {[%clk 00:01:04]}
{[%emt 00:00:02]} 27. Ba3 {[%clk 00:01:58]} {[%emt 00:00:40]} Rbc2 {[%clk
00:01:07]} {[%emt 00:00:07]} 28. Bb4 {[%clk 00:01:36]} {[%emt 00:00:32]} Bf8
{[%clk 00:01:01]} {[%emt 00:00:18]} 29. Bxf8 Kxf8 {[%clk 00:01:10]} 30. Kf1
{[%clk 00:01:27]} {[%emt 00:00:02]} Rc1+ {[%clk 00:01:04]} {[%emt 00:00:18]} 31.
Rxc1 {[%clk 00:01:35]} {[%emt 00:00:02]} Rxc1+ {[%clk 00:01:13]} 32. Ke2 {[%clk
00:01:43]} {[%emt 00:00:02]} Ra1 {[%clk 00:01:22]} 33. Kd3 {[%clk 00:01:19]}
{[%emt 00:00:34]} Rxa2 {[%clk 00:01:30]} {[%emt 00:00:03]} 34. Kc4 {[%clk
00:01:14]} {[%emt 00:00:14]} Ke7 {[%clk 00:01:33]} {[%emt 00:00:08]} 35. Kb3
{[%clk 00:01:11]} {[%emt 00:00:13]} Ra1 {[%clk 00:01:27]} {[%emt 00:00:15]} 36.
Kb2 {[%clk 00:00:57]} {[%emt 00:00:24]} Ra4 {[%clk 00:01:29]} {[%emt 00:00:08]}
37. Ne1 {[%clk 00:00:56]} {[%emt 00:00:11]} Rd4 {[%clk 00:01:14]} {[%emt
00:00:26]} 38. Kc3 {[%clk 00:01:00]} {[%emt 00:00:06]} Ra4 {[%clk 00:01:19]}
{[%emt 00:00:05]} 39. Nd3 {[%clk 00:00:55]} {[%emt 00:00:14]} Ra2 {[%clk
00:00:56]} {[%emt 00:00:33]} 40. Nb4 {[%clk 00:00:59]} {[%emt 00:00:06]} Ra3+
{[%clk 00:00:45]} {[%emt 00:00:21]} 41. Kb2 {[%clk 00:00:52]} {[%emt 00:00:17]}
Ra4 {[%clk 00:00:50]} {[%emt 00:00:06]} 42. Kb3 {[%clk 00:00:45]} {[%emt
00:00:17]} Ra1 {[%clk 00:00:58]} {[%emt 00:00:01]} 43. Nd5+ {[%clk 00:00:35]}
{[%emt 00:00:21]} Ke6 {[%clk 00:01:02]} {[%emt 00:00:06]} 44. Kb2 {[%clk
00:00:22]} {[%emt 00:00:23]} Rh1 {[%clk 00:00:49]} {[%emt 00:00:23]} 45. h3
{[%clk 00:00:30]} {[%emt 00:00:03]} Rg1 {[%clk 00:00:57]} {[%emt 00:00:02]} 46.
Ne3 {[%clk 00:00:33]} {[%emt 00:00:07]} Re1 {[%clk 00:00:52]} {[%emt 00:00:15]}
47. Kc2 {[%clk 00:00:23]} {[%emt 00:00:19]} Ra1 {[%clk 00:00:26]} {[%emt
00:00:37]} 48. Kb2 {[%clk 00:00:23]} {[%emt 00:00:09]} Re1 {[%clk 00:00:31]}
{[%emt 00:00:06]} 49. Kc2 {[%emt 00:00:05]} 1/2-1/2

[Event "Snabb-SM för veteraner, 50+ 2019"]
[Site "Schackcentrum, Vegagatan 20, Gothenburg, Sweden"]
[Date "2019.10.05"]
[Round "2.6"]
[White "Eriksson, Kristian"]
[Black "Hautajarvi, Jukka"]
[Result "1/2-1/2"]
[TimeControl "15 minutes + 10 seconds per move from move one"]
[WhiteFideId "1705172"]
[BlackFideId "1716190"]
[WhiteElo "2025"]
[BlackElo "2145"]

1. e4 {[%clk 00:15:16]} {[%emt 00:00:02]} e5 {[%clk 00:15:11]} {[%emt
00:00:10]} 2. Nf3 {[%clk 00:15:18]} {[%emt 00:00:08]} Nc6 {[%clk 00:15:19]}
{[%emt 00:00:02]} 3. d4 {[%clk 00:15:23]} {[%emt 00:00:04]} exd4 {[%clk
00:14:59]} {[%emt 00:00:31]} 4. Nxd4 {[%clk 00:15:30]} {[%emt 00:00:04]} Bc5
{[%clk 00:15:02]} {[%emt 00:00:07]} 5. Be3 {[%clk 00:15:28]} {[%emt 00:00:11]}
Bxd4 {[%clk 00:14:49]} {[%emt 00:00:23]} 6. Bxd4 {[%clk 00:15:34]} {[%emt
00:00:04]} Nxd4 {[%clk 00:14:53]} {[%emt 00:00:06]} 7. Qxd4 {[%clk 00:15:40]}
{[%emt 00:00:04]} Qf6 {[%clk 00:15:01]} {[%emt 00:00:02]} 8. e5 {[%clk
00:15:17]} {[%emt 00:00:33]} Qb6 {[%clk 00:14:35]} {[%emt 00:00:36]} 9. Qxb6
{[%clk 00:15:21]} {[%emt 00:00:07]} axb6 {[%clk 00:14:44]} {[%emt 00:00:01]} 10.
Nc3 {[%clk 00:15:24]} {[%emt 00:00:06]} Ra5 {[%clk 00:14:40]} {[%emt 00:00:04]}
11. f4 {[%clk 00:14:41]} {[%emt 00:00:52]} f6 {[%clk 00:14:58]} {[%emt
00:00:02]} 12. exf6 {[%clk 00:12:00]} {[%emt 00:02:52]} Nxf6 {[%clk 00:15:06]}
{[%emt 00:00:02]} 13. O-O-O {[%clk 00:11:40]} {[%emt 00:00:30]} O-O {[%clk
00:13:48]} {[%emt 00:01:29]} 14. a3 {[%clk 00:11:37]} {[%emt 00:00:14]} d6
{[%clk 00:13:15]} {[%emt 00:00:42]} 15. Bc4+ {[%clk 00:10:50]} {[%emt
00:00:57]} Kh8 {[%clk 00:13:24]} {[%emt 00:00:02]} 16. g3 {[%clk 00:09:10]}
{[%emt 00:01:50]} Bd7 {[%clk 00:11:37]} {[%emt 00:01:57]} 17. Rhe1 {[%clk
00:08:48]} {[%emt 00:00:32]} Raa8 {[%clk 00:11:20]} {[%emt 00:00:26]} 18. Re7
{[%clk 00:07:57]} {[%emt 00:01:01]} Rae8 {[%clk 00:11:28]} {[%emt 00:00:02]} 19.
Rde1 {[%clk 00:07:59]} {[%emt 00:00:08]} Rxe7 {[%clk 00:11:37]} {[%emt
00:00:02]} 20. Rxe7 {[%clk 00:08:08]} {[%emt 00:00:01]} Re8 {[%clk 00:11:47]}
21. Rxe8+ {[%clk 00:07:58]} {[%emt 00:00:20]} Bxe8 {[%clk 00:11:56]} {[%emt
00:00:01]} 22. Kd2 {[%clk 00:07:45]} {[%emt 00:00:22]} g6 {[%clk 00:10:53]}
{[%emt 00:01:13]} 23. Nd5 {[%clk 00:06:46]} {[%emt 00:01:09]} Nxd5 {[%clk
00:10:46]} {[%emt 00:00:18]} 24. Bxd5 {[%clk 00:06:54]} {[%emt 00:00:02]} c6
{[%clk 00:10:37]} {[%emt 00:00:18]} 25. Be6 {[%clk 00:06:53]} {[%emt 00:00:11]}
b5 {[%clk 00:10:46]} 26. Ke3 {[%clk 00:05:36]} {[%emt 00:01:28]} Kg7 {[%clk
00:10:55]} {[%emt 00:00:01]} 27. Kd4 {[%clk 00:05:28]} {[%emt 00:00:19]} Kf6
{[%clk 00:11:01]} {[%emt 00:00:03]} 28. Bh3 {[%clk 00:05:09]} {[%emt 00:00:30]}
g5 {[%clk 00:10:15]} {[%emt 00:00:56]} 29. fxg5+ {[%clk 00:05:02]} {[%emt
00:00:17]} Kxg5 {[%clk 00:10:24]} 30. Bc8 {[%clk 00:04:54]} {[%emt 00:00:17]}
b6 {[%clk 00:10:32]} {[%emt 00:00:02]} 31. c3 {[%clk 00:04:49]} {[%emt
00:00:16]} h6 {[%clk 00:10:31]} {[%emt 00:00:11]} 32. h4+ {[%clk 00:04:29]}
{[%emt 00:00:30]} Kf6 {[%clk 00:10:02]} {[%emt 00:00:38]} 33. Ke4 {[%clk
00:04:13]} {[%emt 00:00:26]} h5 {[%clk 00:09:35]} {[%emt 00:00:37]} 34. Kf4
{[%clk 00:04:15]} {[%emt 00:00:08]} Kg6 {[%clk 00:09:41]} {[%emt 00:00:04]} 35.
g4 {[%clk 00:03:43]} {[%emt 00:00:42]} hxg4 {[%clk 00:09:49]} {[%emt 00:00:02]}
36. Bxg4 {[%clk 00:03:29]} {[%emt 00:00:24]} Kf6 {[%clk 00:09:56]} {[%emt
00:00:03]} 37. Bf5 {[%clk 00:03:15]} {[%emt 00:00:24]} d5 {[%clk 00:08:34]}
{[%emt 00:01:32]} 38. Bg4 {[%clk 00:03:04]} {[%emt 00:00:21]} c5 {[%clk
00:08:36]} {[%emt 00:00:09]} 39. Be2 {[%clk 00:02:53]} {[%emt 00:00:21]} Bd7
{[%clk 00:08:19]} {[%emt 00:00:26]} 40. h5 {[%clk 00:02:49]} {[%emt 00:00:14]}
b4 {[%clk 00:05:28]} {[%emt 00:03:02]} 41. axb4 {[%clk 00:02:52]} {[%emt
00:00:07]} cxb4 {[%clk 00:05:37]} 42. cxb4 {[%clk 00:02:56]} {[%emt 00:00:07]}
Bf5 {[%clk 00:05:46]} {[%emt 00:00:01]} 43. Bf3 {[%clk 00:02:39]} {[%emt
00:00:26]} d4 {[%clk 00:05:54]} 44. Be4 {[%clk 00:02:39]} {[%emt 00:00:11]} Be6
{[%clk 00:05:57]} {[%emt 00:00:07]} 45. h6 {[%clk 00:02:43]} {[%emt 00:00:06]}
Bc4 {[%clk 00:06:01]} {[%emt 00:00:05]} 46. h7 {[%clk 00:02:32]} {[%emt
00:00:21]} Kg7 {[%clk 00:06:10]} {[%emt 00:00:01]} 47. Ke5 {[%clk 00:01:57]}
{[%emt 00:00:45]} d3 {[%clk 00:06:14]} {[%emt 00:00:06]} 48. Kd4 {[%clk
00:01:49]} {[%emt 00:00:18]} d2 {[%clk 00:06:23]} {[%emt 00:00:02]} 49. Bc2
{[%clk 00:01:22]} {[%emt 00:00:36]} Be2 {[%clk 00:06:31]} {[%emt 00:00:02]} 50.
Kd5 {[%clk 00:01:25]} {[%emt 00:00:07]} d1=Q+ {[%clk 00:06:22]} {[%emt
00:00:19]} 51. Bxd1 {[%clk 00:01:32]} {[%emt 00:00:03]} Bxd1 {[%clk 00:06:31]}
52. Kc6 {[%clk 00:01:38]} {[%emt 00:00:05]} Kxh7 {[%clk 00:06:40]} 53. Kxb6
{[%clk 00:01:45]} {[%emt 00:00:02]} Kg6 {[%clk 00:06:49]} 54. b5 {[%clk
00:01:51]} {[%emt 00:00:05]} Kf6 {[%clk 00:06:57]} {[%emt 00:00:02]} 55. Kc7
{[%clk 00:01:56]} {[%emt 00:00:04]} Ke5 {[%clk 00:07:00]} {[%emt 00:00:07]} 56.
b6 {[%clk 00:01:52]} {[%emt 00:00:14]} Bf3 {[%clk 00:07:08]} {[%emt 00:00:02]}
57. b4 {[%clk 00:01:49]} {[%emt 00:00:13]} Kd4 {[%clk 00:07:17]} {[%emt
00:00:01]} 58. b7 {[%clk 00:01:38]} {[%emt 00:00:22]} Bxb7 {[%clk 00:07:25]}
{[%emt 00:00:02]} 59. Kxb7 {[%emt 00:00:03]} Kc4 {[%clk 00:07:34]} 1/2-1/2